bitfinex/quotes_BTCUSD_20251029
["timestamp","ask_amount","ask_price","bid_price","bid_amount"]
[1761752957719,2.53784112,111730.0,111720.0,0.07846]
[1761752957929,2.53784112,111730.0,111720.0,0.25747897]
[1761752958350,0.17901897,111720.0,111710.0,0.179135]
[1761752958755,0.17901897,111720.0,111710.0,0.209445]
[1761752959582,0.17901897,111720.0,111710.0,0.0001]
[1761752959808,0.51901897,111720.0,111710.0,0.03041]
[1761752960031,0.01883817,111720.0,111710.0,0.07856]
[1761752960244,0.51900295,111730.0,111720.0,0.17901897]
[1761752960473,0.51900295,111730.0,111720.0,0.04815]
[1761752960474,0.53784112,111730.0,111720.0,0.04815]
[1761752960683,0.53784112,111730.0,111720.0,0.29749897]
[1761752960888,0.53784112,111730.0,111720.0,0.11848]
[1761752961300,0.53784112,111730.0,111720.0,0.11912868]
[1761752961533,2.62766013,111730.0,111720.0,0.00064868]
[1761752961759,0.55520125,111720.0,111710.0,0.0001]
[1761752961973,2.90391147,111720.0,111710.0,0.0001]
[1761752962189,2.93861202,111720.0,111710.0,0.0001]
[1761752962438,2.99336158,111720.0,111710.0,0.00031628]
[1761752962644,2.92710799,111720.0,111710.0,0.00031628]
[1761752962860,3.219035,111710.0,111700.0,0.0002]
[1761752963065,2.8750288,111710.0,111700.0,0.0002]
[1761752964155,2.6750288,111710.0,111700.0,0.0002]
[1761752964386,2.70658422,111710.0,111700.0,0.0002]
[1761752964611,2.70658422,111710.0,111700.0,0.00025]
[1761752965025,2.70658422,111710.0,111700.0,0.0003]
[1761752965383,2.70658422,111710.0,111700.0,0.00035]
[1761752966587,0.56942859,111710.0,111700.0,0.07068]
[1761752967548,0.56942859,111710.0,111700.0,0.11883]
[1761752967756,0.53787317,111710.0,111700.0,0.11883]
[1761752967962,0.19787317,111710.0,111700.0,0.11883]
[1761752968243,0.179035,111710.0,111700.0,0.00035]
[1761752968659,0.21059042,111710.0,111700.0,0.0005663]
[1761752969068,0.30040943,111710.0,111700.0,0.0005663]
[1761752969271,0.3192476,111710.0,111700.0,0.0005663]
[1761752969492,0.3192476,111710.0,111700.0,0.1190463]
[1761752969832,0.3192476,111710.0,111700.0,0.0708963]
[1761752970042,0.3192476,111710.0,111700.0,0.0005663]
[1761752970222,2.36658422,111710.0,111700.0,0.0005663]
[1761752971965,0.3192476,111710.0,111700.0,0.0005663]
[1761752973452,0.3192476,111710.0,111700.0,0.1190463]
[1761752973453,0.22942859,111710.0,111700.0,0.1190463]
[1761752973787,0.21059042,111710.0,111700.0,0.1190463]
[1761752973941,0.21059042,111710.0,111700.0,0.0708963]
[1761752974587,0.22942859,111710.0,111700.0,0.0708963]
[1761752975465,0.22942859,111710.0,111700.0,0.0005663]
[1761752975708,0.27676521,111710.0,111700.0,0.0005663]
[1761752975990,0.27676521,111710.0,111700.0,0.0308763]
[1761752976262,0.56942859,111710.0,111700.0,0.0790263]
[1761752976519,0.56942859,111710.0,111700.0,0.0308763]
[1761752976752,0.56942859,111710.0,111700.0,0.0790263]
[1761752976753,0.61676521,111710.0,111700.0,0.0790263]
[1761752977013,0.43773021,111710.0,111700.0,0.25807732]
[1761752977254,0.01883817,111710.0,111700.0,0.34789633]
[1761752977492,0.09773021,111720.0,111710.0,0.179035]
[1761752977773,0.05039359,111720.0,111710.0,0.257115]
[1761752978041,0.22941256,111720.0,111710.0,0.257115]
[1761752978324,0.01883817,111720.0,111710.0,0.257115]
[1761752978715,0.19785714,111720.0,111710.0,0.07808]
[1761752978880,0.19785714,111720.0,111710.0,0.257115]
[1761752979148,0.01883817,111720.0,111710.0,0.257115]
[1761752979406,0.17901897,111720.0,111710.0,0.257115]
[1761752979955,0.57834715,111730.0,111710.0,0.257115]
[1761752980131,0.57834715,111730.0,111720.0,0.07808]
[1761752980338,0.39039359,111730.0,111720.0,0.25709897]
[1761752980571,0.56939654,111730.0,111720.0,0.25709897]
[1761752980822,0.56939654,111730.0,111720.0,0.07808]
[1761752981082,0.17901897,111720.0,111710.0,0.179035]
[1761752981605,0.17901897,111720.0,111710.0,0.211875]
[1761752981874,0.17901897,111720.0,111710.0,0.03284]
[1761752982077,0.17901897,111720.0,111710.0,0.07808]
[1761752982925,3.15923157,111720.0,111710.0,0.03284]
[1761752983172,2.65923157,111720.0,111710.0,0.03284]
[1761752983411,2.65923157,111720.0,111700.0,0.0458063]
[1761752983412,2.179035,111710.0,111700.0,0.0005663]
[1761752983685,2.28769218,111710.0,111700.0,0.0458063]
[1761752983922,2.28769218,111710.0,111700.0,0.0786463]
[1761752984593,2.62769218,111710.0,111700.0,0.0005663]
[1761752984851,2.8835288,111710.0,111700.0,0.0005663]
[1761752986516,2.6835288,111710.0,111700.0,0.0005663]
[1761752986723,2.71517766,111710.0,111700.0,0.0005663]
[1761752988538,2.66784104,111710.0,111700.0,0.0005663]
[1761752988813,2.19787317,111710.0,111700.0,0.1192263]
[1761752989069,2.53787317,111710.0,111700.0,0.1192263]
[1761752989320,2.62769218,111710.0,111700.0,0.0005663]
[1761752989561,2.62769218,111710.0,111700.0,0.0006163]
[1761752989833,2.52179317,111710.0,111700.0,0.0740363]
[1761752990335,2.52179317,111710.0,111700.0,0.0740863]
[1761752990584,0.52179317,111710.0,111700.0,0.29842732]
[1761752990830,0.17901897,111720.0,111700.0,0.29842732]
[1761752991071,2.0,111710.0,111700.0,0.22034732]
[1761752991562,0.17901897,111720.0,111710.0,0.179035]
[1761752991807,0.17901897,111720.0,111710.0,0.211875]
[1761752992058,2.0,111720.0,111710.0,0.257115]
[1761752992303,0.18795309,111730.0,111720.0,0.17901897]
[1761752992546,0.52795309,111730.0,111720.0,0.25709897]
[1761752992804,0.54695364,111730.0,111720.0,0.25709897]
[1761752993068,0.54695364,111730.0,111720.0,0.07808]
[1761752993597,0.54695364,111730.0,111720.0,0.07813]
[1761752994206,0.5380035,111730.0,111720.0,0.07813]
[1761752994850,0.34,111730.0,111720.0,0.25714897]
[1761752995083,0.51900295,111730.0,111720.0,0.25719897]
[1761752995709,2.0,111730.0,111720.0,0.25719897]
[1761752995924,0.19406542,111740.0,111730.0,0.17900295]
[1761752995925,0.01507849,111740.0,111730.0,0.17900295]
[1761752996139,0.19406542,111740.0,111730.0,0.29766295]
[1761752996991,0.01507849,111740.0,111730.0,0.29766295]
[1761752998237,0.11507849,111740.0,111730.0,0.29766295]
[1761752998447,2.46632317,111760.0,111750.0,0.17897091]
[1761752998657,0.19795611,111760.0,111750.0,0.21181091]
[1761752998866,0.1789549,111760.0,111750.0,0.07808]
[1761752999067,0.1789549,111760.0,111750.0,0.25705091]
[1761752999273,0.1789549,111760.0,111750.0,0.07808]
[1761752999486,0.1789549,111760.0,111750.0,0.03289]
[1761753000363,0.5189549,111760.0,111750.0,0.03289]
[1761753000580,2.60877391,111760.0,111750.0,5e-05]
[1761753000795,2.62779953,111760.0,111750.0,0.0001]
[1761753001748,2.87499953,111760.0,111750.0,0.0001]
[1761753002839,2.87499953,111760.0,111750.0,0.03294]
[1761753003048,2.7661549,111760.0,111750.0,0.07818]
[1761753003257,2.7661549,111760.0,111750.0,0.03294]
[1761753003469,2.7661549,111760.0,111750.0,0.07818]
[1761753003890,0.2472,111760.0,111750.0,0.25715091]
[1761753004110,0.18088426,111780.0,111770.0,0.17893889]
[1761753004317,0.18088426,111780.0,111770.0,0.21177889]
[1761753004318,2.18095809,111780.0,111770.0,0.21177889]
[1761753004522,0.00203521,111780.0,111770.0,0.25701889]
[1761753004933,0.18095809,111780.0,111770.0,0.25701889]
[1761753005346,0.18095809,111780.0,111770.0,0.07808]
[1761753005769,0.1789549,111760.0,111750.0,0.0001]
[1761753005985,0.5189549,111760.0,111750.0,0.0001]
[1761753006396,0.5189549,111760.0,111750.0,0.03294]
[1761753006604,2.60877391,111760.0,111750.0,0.0001]
[1761753007083,2.71900295,111730.0,111720.0,0.0001]
[1761753007294,2.60882196,111730.0,111720.0,0.0001]
[1761753008384,2.80882196,111730.0,111720.0,0.00058656]
[1761753008660,2.60882196,111730.0,111720.0,0.00058656]
[1761753009997,2.62778926,111730.0,111720.0,0.00063656]
[1761753010409,2.82778926,111730.0,111720.0,0.00063656]
[1761753010631,2.85158435,111730.0,111720.0,0.00068656]
[1761753010836,2.89626663,111730.0,111720.0,0.00068656]
[1761753011054,0.179035,111710.0,111700.0,0.0007163]
[1761753011267,2.80934027,111710.0,111700.0,0.0007163]
[1761753011476,2.82830757,111710.0,111700.0,0.0007163]
[1761753011902,2.62830757,111710.0,111700.0,0.0007163]
[1761753012110,2.62830757,111710.0,111700.0,0.0719563]
[1761753013376,2.6520297,111710.0,111700.0,0.0007163]
[1761753013598,2.8520297,111710.0,111700.0,0.0007163]
[1761753015059,2.6520297,111710.0,111700.0,0.0719563]
[1761753015262,2.62830757,111710.0,111700.0,0.1170263]
[1761753015474,2.62830757,111710.0,111700.0,0.0007163]
[1761753016291,2.62830757,111710.0,111700.0,0.0333963]
[1761753016927,2.19848856,111710.0,111700.0,0.0784663]
[1761753017342,0.17952126,111710.0,111700.0,0.25751732]
[1761753017756,0.00048626,111710.0,111700.0,0.25751732]
[1761753018166,0.17952126,111710.0,111700.0,0.25751732]
[1761753018371,0.17952126,111710.0,111700.0,0.25756732]
[1761753018784,0.00048626,111710.0,111700.0,0.25756732]
[1761753018991,0.17952126,111710.0,111700.0,0.25756732]
[1761753019404,0.17952126,111710.0,111700.0,0.25761732]
[1761753019812,0.00048626,111710.0,111700.0,0.25761732]
[1761753020425,0.17952126,111710.0,111700.0,0.25761732]
[1761753020870,0.00048626,111710.0,111700.0,0.25761732]
[1761753021063,0.17952126,111710.0,111700.0,0.25761732]
[1761753021654,0.26934027,111710.0,111700.0,0.0334963]
[1761753022673,0.26934027,111710.0,111700.0,0.0785663]
[1761753022820,0.17952126,111710.0,111700.0,0.25761732]
[1761753023656,2.51849586,111720.0,111710.0,0.03268]
[1761753023983,2.51849586,111720.0,111710.0,0.07789609]
[1761753024618,2.51901897,111720.0,111710.0,0.25693109]
[1761753024819,2.51901897,111720.0,111710.0,0.07789609]
[1761753025016,2.51901897,111720.0,111710.0,0.25693109]
[1761753025243,2.51901897,111720.0,111710.0,0.07789609]
[1761753026909,2.51901897,111720.0,111710.0,0.11645609]
[1761753027117,2.51901897,111720.0,111710.0,0.07138609]
[1761753027331,2.51901897,111720.0,111710.0,0.11645609]
[1761753027746,2.60883798,111720.0,111710.0,0.00014609]
[1761753027971,2.85603798,111720.0,111710.0,0.00014609]
[1761753028181,2.85603798,111720.0,111710.0,0.11645609]
[1761753028392,2.78517322,111720.0,111710.0,0.29549109]
[1761753028598,2.76621897,111720.0,111710.0,0.11645609]
[1761753029014,2.85603798,111720.0,111710.0,0.00014609]
[1761753029221,2.87499573,111720.0,111710.0,0.00014609]
[1761753029424,2.87499573,111720.0,111710.0,0.01014609]
[1761753029838,2.87499573,111720.0,111710.0,0.12645609]
[1761753030262,2.85603798,111720.0,111710.0,0.12645609]
[1761753030909,2.60883798,111720.0,111710.0,0.12645609]
[1761753031635,0.51901897,111720.0,111710.0,0.30549109]
[1761753031880,0.18795309,111730.0,111710.0,0.30549109]
[1761753032174,0.17900295,111730.0,111720.0,0.07775]
[1761753032673,0.51900295,111730.0,111720.0,0.07775]
[1761753032905,0.53797853,111730.0,111720.0,0.07775]
[1761753034253,0.51900295,111730.0,111720.0,0.07775]
[1761753034679,2.0,111730.0,111720.0,0.27467086]
[1761753034901,2.0,111730.0,111720.0,0.25667735]
[1761753035105,2.17898693,111740.0,111730.0,0.1789982]
[1761753035317,0.19800521,111740.0,111730.0,0.25675295]
[1761753035518,0.17898693,111740.0,111730.0,0.25675295]
[1761753036004,2.23068729,111750.0,111730.0,0.25675295]
[1761753036206,0.17898693,111740.0,111730.0,0.17900295]
[1761753036624,0.57068729,111750.0,111730.0,0.21168295]
[1761753036854,0.17898693,111740.0,111730.0,0.17900295]
[1761753037467,0.17898693,111740.0,111730.0,0.25915295]
[1761753037681,0.23068729,111750.0,111730.0,0.25915295]
[1761753037888,0.17898693,111740.0,111730.0,0.17900295]
[1761753038332,0.17898693,111740.0,111730.0,0.20932295]
[1761753038531,0.17898693,111740.0,111730.0,0.25915295]
[1761753038780,2.38286854,111750.0,111740.0,0.17898693]
[1761753038984,0.56183945,111750.0,111740.0,0.25913693]
[1761753039184,0.51897091,111750.0,111740.0,0.08015]
[1761753039617,0.17897091,111750.0,111740.0,0.08015]
[1761753039822,2.17897091,111750.0,111740.0,0.25913693]
[1761753040037,0.20278326,111750.0,111740.0,0.25913693]
[1761753040245,0.60251467,111760.0,111740.0,0.25913693]
[1761753040453,2.0,111750.0,111740.0,0.17898693]
[1761753040637,0.19802079,111750.0,111730.0,0.21490233]
[1761753040891,0.51897091,111750.0,111730.0,0.30472134]
[1761753041094,0.53802079,111750.0,111740.0,0.08015]
[1761753041951,0.51898693,111740.0,111730.0,0.08573]
[1761753042161,2.53803681,111740.0,111730.0,0.08573]
[1761753042363,2.53803681,111740.0,111730.0,0.11605]
[1761753042992,0.53803681,111740.0,111730.0,0.11605]
[1761753043205,0.53803681,111740.0,111730.0,0.06622]
[1761753044245,0.51901897,111720.0,111710.0,0.09853609]
[1761753044460,0.34,111720.0,111710.0,0.27757109]
[1761753044677,0.34,111720.0,111710.0,0.30789109]
[1761753044890,0.51901897,111720.0,111710.0,0.30789109]
[1761753045094,0.34,111720.0,111710.0,0.30789109]
[1761753045302,0.03276169,111740.0,111730.0,0.17900295]
[1761753045508,0.51898693,111740.0,111730.0,0.24522295]
[1761753045711,0.35901613,111740.0,111730.0,0.24522295]
[1761753045914,0.01901613,111740.0,111730.0,0.29505295]
[1761753046038,0.2117318,111750.0,111730.0,0.29505295]
[1761753046239,0.2117318,111750.0,111740.0,0.08015]
[1761753046441,0.5517318,111750.0,111740.0,0.25913693]
[1761753046644,0.54693558,111750.0,111740.0,0.25913693]
[1761753047620,0.54693558,111750.0,111740.0,0.08015]
[1761753048213,0.54693558,111750.0,111740.0,0.25913693]
[1761753048663,0.01901613,111750.0,111740.0,0.25913693]
[1761753048812,0.02381235,111760.0,111750.0,0.17897091]
[1761753049025,0.02381235,111760.0,111750.0,0.29502091]
[1761753049026,0.1789549,111760.0,111750.0,0.29502091]
[1761753049390,0.5189549,111760.0,111750.0,0.11605]
[1761753049594,0.56178338,111760.0,111750.0,0.11605]
[1761753050011,0.56178338,111760.0,111750.0,0.06622]
[1761753050428,0.53797103,111760.0,111750.0,0.06627]
[1761753051079,0.53797103,111760.0,111750.0,0.0001]
[1761753051080,2.62779004,111760.0,111750.0,0.0001]
[1761753051291,2.65160239,111760.0,111750.0,0.0001]
[1761753054215,2.65160239,111760.0,111750.0,0.03042]
[1761753054831,2.62779004,111760.0,111750.0,0.08025]
[1761753055037,2.62779004,111760.0,111750.0,0.03042]
[1761753055225,2.65160239,111760.0,111750.0,0.0001]
[1761753056286,2.68335219,111760.0,111750.0,0.0001]
[1761753056490,2.73603235,111760.0,111750.0,0.0001]
[1761753056694,2.76294024,111760.0,111750.0,0.0001]
[1761753058660,2.79500066,111760.0,111750.0,0.0001]
[1761753059111,2.99500066,111760.0,111750.0,0.0001]
[1761753059315,2.76325086,111760.0,111750.0,0.0001]
[1761753059458,2.79493744,111760.0,111750.0,0.0001]
[1761753059863,2.7995531,111760.0,111750.0,0.0001]
[1761753060121,2.73184727,111760.0,111750.0,0.0001]
[1761753060712,2.93634297,111760.0,111750.0,0.0001]
[1761753060984,0.17901897,111720.0,111710.0,0.01]
[1761753061161,2.60883798,111720.0,111710.0,0.01014609]
[1761753061362,2.62785411,111720.0,111710.0,0.01014609]
[1761753061563,2.62785411,111720.0,111710.0,0.12619609]
[1761753061762,0.5380351,111720.0,111710.0,0.12619609]
[1761753061943,0.5380351,111720.0,111710.0,0.30523109]
[1761753062147,0.34,111720.0,111710.0,0.30523109]
[1761753062550,2.0,111730.0,111720.0,0.17901843]
[1761753062756,0.05546119,111750.0,111730.0,0.17899735]
[1761753063004,2.82425111,111750.0,111740.0,0.11605]
[1761753063212,2.22175973,111750.0,111740.0,0.11605]
[1761753063589,2.56176594,111750.0,111740.0,0.11605]
[1761753063786,2.22176594,111750.0,111740.0,0.29503693]
[1761753063991,0.04279503,111750.0,111740.0,0.29503693]
[1761753064194,0.02377502,111750.0,111740.0,0.29503693]
[1761753064392,0.05546713,111760.0,111750.0,0.17897091]
[1761753064595,0.02377502,111760.0,111750.0,0.29502091]
[1761753065397,0.20272992,111760.0,111750.0,0.29502091]
[1761753065603,0.02377502,111760.0,111750.0,0.29502091]
[1761753065806,0.20272992,111760.0,111750.0,0.29502091]
[1761753066048,2.0,111760.0,111750.0,0.29502091]
[1761753066240,2.19797491,111760.0,111750.0,0.29502091]
[1761753066409,0.19797491,111760.0,111750.0,0.29502091]
[1761753066614,2.0,111760.0,111750.0,0.29502091]
[1761753066848,0.01902001,111760.0,111750.0,0.29502091]
[1761753067065,2.57068167,111770.0,111760.0,0.1789549]
[1761753067287,2.13598119,111770.0,111760.0,0.41651]
[1761753067467,2.19798635,111770.0,111760.0,0.5954649]
[1761753067668,0.01902001,111770.0,111760.0,0.5954649]
[1761753067870,2.0,111770.0,111760.0,0.5954649]
[1761753068073,0.01902001,111770.0,111760.0,0.5954649]
[1761753068226,2.20885399,111780.0,111770.0,0.51893889]
[1761753068427,0.02105522,111780.0,111770.0,0.63197889]
[1761753068656,0.00203521,111780.0,111770.0,0.63197889]
[1761753070292,0.00203521,111780.0,111770.0,1.1914232]
[1761753070515,0.00203521,111780.0,111770.0,0.7218479]
[1761753071850,0.00203521,111780.0,111770.0,1.1914732]
[1761753072159,0.00203521,111780.0,111770.0,0.88765548]
[1761753072666,0.00203521,111780.0,111770.0,0.3818479]
[1761753073221,0.00203521,111780.0,111770.0,0.8514732]
[1761753074643,4.99174532,111800.0,111770.0,0.3818479]
[1761753074845,5.33183241,111800.0,111790.0,0.25051687]
[1761753075005,5.33183241,111800.0,111790.0,0.07161]
[1761753075204,5.33183241,111800.0,111790.0,0.29979687]
[1761753075696,4.80399677,111800.0,111790.0,0.29979687]
[1761753076973,4.80399677,111800.0,111790.0,0.38961588]
[1761753077187,4.80399677,111800.0,111790.0,0.38966588]
[1761753077609,4.80399677,111800.0,111790.0,0.85929118]
[1761753078013,4.80399677,111800.0,111790.0,0.38966588]
[1761753080672,4.80442882,111800.0,111790.0,0.38966588]
[1761753081058,4.98331969,111800.0,111790.0,0.29984687]
[1761753081494,5.32331969,111800.0,111790.0,0.07166]
[1761753081944,7.6603387,111800.0,111790.0,5e-05]
[1761753082876,7.63203646,111800.0,111790.0,5e-05]
[1761753083747,7.67642057,111800.0,111790.0,5e-05]
[1761753084360,7.70811268,111800.0,111790.0,5e-05]
[1761753084694,7.72395874,111800.0,111790.0,5e-05]
[1761753085113,7.67642057,111800.0,111790.0,5e-05]
[1761753085309,7.72365058,111800.0,111790.0,5e-05]
[1761753085514,7.73365057,111800.0,111790.0,5e-05]
[1761753085748,7.68642056,111800.0,111790.0,5e-05]
[1761753085948,7.73365238,111800.0,111790.0,5e-05]
[1761753086167,7.68642056,111800.0,111790.0,5e-05]
[1761753086557,2.75510516,111780.0,111770.0,5e-05]
[1761753086768,2.91201781,111780.0,111770.0,5e-05]
[1761753087299,0.7189549,111760.0,111750.0,5e-05]
[1761753087518,2.82767167,111760.0,111750.0,5e-05]
[1761753088134,2.89534767,111760.0,111750.0,5e-05]
[1761753088345,2.97153058,111760.0,111750.0,5e-05]
[1761753088558,2.97973045,111760.0,111750.0,5e-05]
[1761753088759,3.02697152,111760.0,111750.0,5e-05]
[1761753088961,3.02697152,111760.0,111750.0,1e-08]
[1761753089170,2.94823673,111760.0,111750.0,1e-08]
[1761753089372,2.51901897,111720.0,111710.0,0.01188989]
[1761753089576,2.62773574,111720.0,111710.0,0.01188989]
[1761753090009,2.63807969,111720.0,111710.0,0.01188989]
[1761753090458,2.63807969,111720.0,111700.0,0.0006]
[1761753090459,0.41521728,111710.0,111700.0,0.0006]
[1761753090665,2.88722405,111710.0,111700.0,0.0006]
[1761753091942,2.88722405,111710.0,111700.0,0.00065]
[1761753092624,2.88722405,111710.0,111700.0,0.0007]
[1761753092625,2.69572405,111710.0,111700.0,0.0007]
[1761753092836,2.64064401,111710.0,111700.0,0.0007]
[1761753093043,2.30064401,111710.0,111700.0,0.0007]
[1761753093458,2.202325,111710.0,111700.0,0.03883]
[1761753093687,2.0,111710.0,111700.0,0.31611612]
[1761753093896,2.0,111710.0,111700.0,0.29821102]
[1761753094109,0.20230897,111720.0,111700.0,0.29821102]
[1761753094316,0.20230897,111720.0,111700.0,0.0712]
[1761753094317,0.519035,111710.0,111700.0,0.0712]
[1761753094495,0.34,111710.0,111700.0,0.17975102]
[1761753094701,0.179035,111710.0,111700.0,0.21788102]
[1761753094906,2.0,111710.0,111700.0,0.25025102]
[1761753095230,0.519035,111710.0,111700.0,0.25025102]
[1761753096437,0.34,111710.0,111700.0,0.25025102]
[1761753096602,0.34,111710.0,111700.0,0.29835692]
[1761753096825,0.519035,111710.0,111700.0,0.29835692]
[1761753097025,0.519035,111710.0,111700.0,0.25039692]
[1761753097273,0.34,111710.0,111700.0,0.29831692]
[1761753097482,0.34,111710.0,111700.0,0.25061323]
[1761753097696,0.519035,111710.0,111700.0,0.25061323]
[1761753098508,0.519035,111710.0,111700.0,0.07156221]
[1761753098724,0.519035,111710.0,111700.0,0.00106221]
[1761753098725,2.519035,111710.0,111700.0,0.00106221]
[1761753099143,2.179035,111710.0,111700.0,0.00106221]
[1761753099364,0.519035,111710.0,111700.0,0.00106221]
[1761753099563,0.519035,111710.0,111700.0,0.24995323]
[1761753099765,0.34,111710.0,111700.0,0.24995323]
[1761753099975,0.519035,111710.0,111700.0,0.29787323]
[1761753100564,0.34,111710.0,111700.0,0.29787323]
[1761753100765,0.519035,111710.0,111700.0,0.29787323]
[1761753101856,0.34,111710.0,111700.0,0.24995323]
[1761753102074,0.519035,111710.0,111700.0,0.29787323]
[1761753103380,0.34,111710.0,111700.0,0.29787323]
[1761753103517,0.519035,111710.0,111700.0,0.29787323]
[1761753103915,0.34,111710.0,111700.0,0.29787323]
[1761753105257,0.519035,111710.0,111700.0,0.29787323]
[1761753105666,0.519035,111710.0,111700.0,0.11882221]
[1761753106058,0.519035,111710.0,111700.0,0.29787323]
[1761753106660,0.34,111710.0,111700.0,0.29787323]
[1761753107060,0.22149647,111730.0,111700.0,0.29787323]
[1761753107265,2.01025273,111730.0,111720.0,0.24885897]
[1761753107492,2.52925568,111730.0,111720.0,0.24885897]
[1761753107741,2.52925568,111730.0,111720.0,0.29677897]
[1761753108359,2.18925568,111730.0,111720.0,0.29677897]
[1761753108787,2.52925568,111730.0,111720.0,0.29677897]
[1761753108992,2.18925568,111730.0,111720.0,0.29677897]
[1761753109173,2.35025273,111730.0,111720.0,0.29677897]
[1761753109404,2.55254568,111730.0,111720.0,0.24885897]
[1761753109638,2.55254568,111730.0,111720.0,0.29677897]
[1761753110596,2.37354273,111730.0,111720.0,0.29677897]
[1761753110803,2.52925568,111730.0,111720.0,0.29677897]
[1761753111186,2.52925568,111730.0,111720.0,0.29682897]
[1761753111599,2.57143344,111730.0,111720.0,0.11781]
[1761753111817,2.57143344,111730.0,111720.0,0.29682897]
[1761753112123,2.57143344,111730.0,111720.0,0.24890897]
[1761753112528,2.57143344,111730.0,111720.0,0.06989]
[1761753112761,2.57143344,111730.0,111720.0,5e-05]
[1761753112908,2.66125245,111730.0,111720.0,5e-05]
[1761753113312,2.66125245,111730.0,111720.0,0.03305]
[1761753113523,2.54814344,111730.0,111720.0,0.08097]
[1761753113741,2.53789071,111730.0,111720.0,0.08097]
[1761753114173,2.53789071,111730.0,111720.0,0.25998897]
[1761753114385,2.53789071,111730.0,111720.0,0.08097]
[1761753114595,2.35888776,111730.0,111720.0,0.08097]
[1761753114801,2.53789071,111730.0,111720.0,0.08097]
[1761753115007,2.53789071,111730.0,111720.0,0.25998897]
[1761753115422,2.35888776,111730.0,111720.0,0.25998897]
[1761753116111,2.53789071,111730.0,111720.0,0.25998897]
[1761753116333,2.56118071,111730.0,111720.0,0.25998897]
[1761753117193,2.38217776,111730.0,111720.0,0.25998897]
[1761753117417,2.56118071,111730.0,111720.0,0.25998897]
[1761753117646,2.53789071,111730.0,111720.0,0.25998897]
[1761753118108,2.35888776,111730.0,111720.0,0.25998897]
[1761753118313,0.35888776,111730.0,111720.0,0.25998897]
[1761753119440,0.53789071,111730.0,111720.0,0.25998897]
[1761753119636,0.35888776,111730.0,111720.0,0.25998897]
[1761753120613,0.53789071,111730.0,111720.0,0.25998897]
[1761753121167,0.35888776,111730.0,111720.0,0.25998897]
[1761753121391,0.01888776,111730.0,111720.0,0.25998897]
[1761753121636,0.03148289,111740.0,111720.0,0.25998897]
[1761753121637,2.56935843,111740.0,111730.0,0.17900295]
[1761753121817,2.39037065,111740.0,111730.0,0.29676295]
[1761753122221,0.05037065,111740.0,111730.0,0.29676295]
[1761753122426,0.05037065,111750.0,111740.0,0.17898693]
[1761753122634,0.05037065,111750.0,111740.0,0.25990693]
[1761753122810,0.03148289,111750.0,111740.0,0.25990693]
[1761753123015,2.24508373,111760.0,111750.0,0.17897091]
[1761753123192,2.2533941,111760.0,111750.0,0.29673091]
[1761753123392,0.05880122,111760.0,111750.0,0.29673091]
[1761753123773,0.05057094,111760.0,111750.0,0.29687681]
[1761753123978,0.60016627,111770.0,111760.0,0.1789549]
[1761753124213,2.07025326,111770.0,111760.0,0.2598749]
[1761753124428,2.20613906,111770.0,111760.0,0.2598749]
[1761753124633,2.02720017,111770.0,111760.0,0.2598749]
[1761753124772,0.19790674,111770.0,111760.0,0.2598749]
[1761753124968,0.17893889,111770.0,111760.0,0.2598749]
[1761753125175,0.34,111770.0,111760.0,0.2598749]
[1761753125406,0.35896785,111770.0,111760.0,0.2598749]
[1761753125601,0.01896785,111770.0,111760.0,0.2598749]
[1761753125768,2.21241574,111780.0,111770.0,0.17893889]
[1761753125968,2.25002215,111780.0,111770.0,0.29669889]
[1761753126165,0.02908156,111780.0,111770.0,0.29669889]
[1761753126440,0.00188929,111780.0,111770.0,0.29669889]
[1761753126621,0.34188929,111780.0,111770.0,0.29669889]
[1761753126854,0.02085714,111780.0,111770.0,0.29669889]
[1761753127074,4.90172169,111800.0,111780.0,0.17892288]
[1761753127281,4.85476294,111800.0,111790.0,0.40237656]
[1761753127479,4.83109244,111800.0,111790.0,0.38448588]
[1761753127818,4.82287753,111800.0,111790.0,0.38448588]
[1761753128041,4.83109285,111800.0,111790.0,0.38398588]
[1761753128258,4.82287753,111800.0,111790.0,0.38398588]
[1761753128678,4.80390968,111800.0,111790.0,0.38398588]
[1761753128900,4.80390968,111800.0,111790.0,1.11016333]
[1761753129119,4.80390968,111800.0,111790.0,1.14634561]
[1761753129300,4.80390968,111800.0,111790.0,1.16639559]
[1761753130080,4.79025112,111800.0,111790.0,1.16639559]
[1761753130286,4.18458042,111800.0,111790.0,1.16639559]
[1761753130509,4.18458042,111800.0,111790.0,1.1563956]
[1761753130709,4.18458042,111800.0,111790.0,0.42971815]
[1761753130909,4.18458042,111800.0,111790.0,1.50589559]
[1761753131133,4.18458042,111800.0,111790.0,1.4958956]
[1761753131750,4.18458042,111800.0,111790.0,1.50589559]
[1761753131954,4.18458042,111800.0,111790.0,1.4958956]
[1761753132279,4.18458042,111800.0,111790.0,1.50589559]
[1761753132685,3.7740535,111800.0,111790.0,0.77971814]
[1761753132881,3.7740535,111800.0,111790.0,1.50589559]
[1761753133085,3.69735519,111800.0,111790.0,1.50589559]
[1761753133672,3.69735519,111800.0,111790.0,0.38353588]
[1761753134032,3.69735519,111800.0,111790.0,0.29371687]
[1761753134977,3.69735519,111800.0,111790.0,0.38353588]
[1761753135786,3.69735519,111800.0,111790.0,0.20562901]
[1761753135982,3.87624606,111800.0,111790.0,0.11581]
[1761753136182,3.69735519,111800.0,111790.0,0.29471687]
[1761753136381,3.69735519,111800.0,111790.0,0.38453588]
[1761753136649,3.69735519,111800.0,111790.0,1.11071333]
[1761753136834,3.69735519,111800.0,111790.0,1.14689561]
[1761753136835,3.64735519,111800.0,111790.0,1.14689561]
[1761753137087,3.59735519,111800.0,111790.0,1.14689561]
[1761753138063,3.59778726,111800.0,111790.0,1.4968956]
[1761753138274,3.59778726,111800.0,111790.0,1.50689559]
[1761753139461,3.59778726,111800.0,111790.0,0.77071815]
[1761753139687,3.59778726,111800.0,111790.0,1.4968956]
[1761753140253,3.59778726,111800.0,111790.0,1.50689559]
[1761753140454,3.59778726,111800.0,111790.0,1.4968956]
[1761753142377,3.59778726,111800.0,111790.0,1.48689561]
[1761753143083,3.59778726,111800.0,111790.0,0.76071816]
[1761753143284,3.59778726,111800.0,111790.0,1.4968956]
[1761753143519,3.59778726,111800.0,111790.0,1.50689559]
[1761753143720,3.58834739,111800.0,111790.0,1.50689559]
[1761753144071,3.41448389,111800.0,111790.0,1.50689559]
[1761753144279,3.40903149,111800.0,111790.0,1.50689559]
[1761753144496,2.82457168,111800.0,111790.0,1.50689559]
[1761753144706,1.24271324,111800.0,111790.0,1.50689559]
[1761753144917,1.24271324,111800.0,111790.0,3.4968956]
[1761753145143,1.24271324,111800.0,111790.0,3.50689559]
[1761753145365,0.81037703,111800.0,111790.0,3.71765452]
[1761753145628,0.07785373,111800.0,111790.0,3.71765452]